[Event "Titled Tuesday Blitz January 10 Late 2023"]
[White "Caruana, Fabiano"]
[Black "Vlassov, Nikolai"]
[WhiteFideId "2020009"]
[BlackFideId "4103360"]
[WhiteElo "2764"]
[BlackElo "2283"]
[Result "1/2-1/2"]
[Round "02"]
[TimeControl "180+2"]
[Date "2023.01.10"]
[WhiteClock "0:00:09"]
[BlackClock "0:00:10"]

1. d4 {[%clk 0:00:00]}  Nf6 {[%clk 0:00:00]} 2. c4 {[%clk 0:03:00]}  Nc6 {[%clk 0:02:59]} 3. Nc3 {[%clk 0:02:55]}  e5 {[%clk 0:02:59]} 4. d5 {[%clk 0:02:53]}  Ne7 {[%clk 0:02:59]} 5. Nf3 {[%clk 0:02:53]}  Ng6 {[%clk 0:02:59]} 6. h4 {[%clk 0:02:53]}  h5 {[%clk 0:02:59]} 7. e4 {[%clk 0:02:54]}  Ng4 {[%clk 0:02:59]} 8. Bg5 {[%clk 0:02:53]}  f6 {[%clk 0:02:52]} 9. Be3 {[%clk 0:02:31]}  Nxe3 {[%clk 0:02:50]} 10. fxe3 {[%clk 0:02:27]}  Bc5 {[%clk 0:02:48]} 11. Qd2 {[%clk 0:02:28]}  d6 {[%clk 0:02:49]} 12. Na4 {[%clk 0:02:26]}  Bb6 {[%clk 0:02:49]} 13. O-O-O {[%clk 0:02:25]}  Bg4 {[%clk 0:02:35]} 14. Kb1 {[%clk 0:02:22]}  Nf8 {[%clk 0:02:18]} 15. Be2 {[%clk 0:02:20]}  Nd7 {[%clk 0:02:17]} 16. Ne1 {[%clk 0:02:19]}  Nc5 {[%clk 0:02:17]} 17. Nxc5 {[%clk 0:02:13]}  Bxc5 {[%clk 0:02:01]} 18. Bxg4 {[%clk 0:02:11]}  hxg4 {[%clk 0:02:02]} 19. Nd3 {[%clk 0:02:09]}  Bb6 {[%clk 0:02:02]} 20. Qe2 {[%clk 0:02:09]}  Qd7 {[%clk 0:01:55]} 21. Nf2 {[%clk 0:02:08]}  f5 {[%clk 0:01:55]} 22. Ka1 {[%clk 0:02:07]}  g3 {[%clk 0:01:37]} 23. Nh3 {[%clk 0:01:46]}  fxe4 {[%clk 0:01:27]} 24. Ng5 {[%clk 0:01:45]}  O-O-O {[%clk 0:01:26]} 25. Nxe4 {[%clk 0:01:44]}  Qe7 {[%clk 0:01:20]} 26. Qg4+ {[%clk 0:01:35]}  Kb8 {[%clk 0:01:14]} 27. Qxg3 {[%clk 0:01:34]}  Rh6 {[%clk 0:01:13]} 28. Ng5 {[%clk 0:01:32]}  Rf8 {[%clk 0:01:11]} 29. Rdf1 {[%clk 0:01:29]}  Rhf6 {[%clk 0:01:08]} 30. Rxf6 {[%clk 0:01:27]}  Qxf6 {[%clk 0:01:04]} 31. a3 {[%clk 0:01:19]}  a5 {[%clk 0:01:02]} 32. Ne6 {[%clk 0:01:16]}  Rf7 {[%clk 0:01:01]} 33. h5 {[%clk 0:01:14]}  a4 {[%clk 0:01:02]} 34. Ka2 {[%clk 0:01:10]}  Qf5 {[%clk 0:00:58]} 35. Qf3 {[%clk 0:01:07]}  Qxf3 {[%clk 0:00:53]} 36. gxf3 {[%clk 0:00:52]}  Bxe3 {[%clk 0:00:40]} 37. Rh3 {[%clk 0:00:52]}  c6 {[%clk 0:00:39]} 38. Kb1 {[%clk 0:00:53]}  cxd5 {[%clk 0:00:38]} 39. cxd5 {[%clk 0:00:51]}  Ka7 {[%clk 0:00:38]} 40. Kc2 {[%clk 0:00:52]}  Kb6 {[%clk 0:00:27]} 41. Rg3 {[%clk 0:00:51]}  Bh6 {[%clk 0:00:27]} 42. Kd3 {[%clk 0:00:50]}  Kb5 {[%clk 0:00:26]} 43. Rg4 {[%clk 0:00:50]}  Rxf3+ {[%clk 0:00:25]} 44. Ke2 {[%clk 0:00:25]}  Rf7 {[%clk 0:00:24]} 45. Rb4+ {[%clk 0:00:25]}  Ka5 {[%clk 0:00:22]} 46. Nd8 {[%clk 0:00:25]}  Rf4 {[%clk 0:00:23]} 47. Nxb7+ {[%clk 0:00:25]}  Ka6 {[%clk 0:00:20]} 48. Rxf4 {[%clk 0:00:24]}  Bxf4 {[%clk 0:00:21]} 49. Nxd6 {[%clk 0:00:23]}  Bc1 {[%clk 0:00:19]} 50. Nc4 {[%clk 0:00:23]}  Kb5 {[%clk 0:00:19]} 51. Kd3 {[%clk 0:00:20]}  e4+ {[%clk 0:00:20]} 52. Kc3 {[%clk 0:00:10]}  e3 {[%clk 0:00:18]} 53. Ne5 {[%clk 0:00:10]}  e2 {[%clk 0:00:16]} 54. Nf3 {[%clk 0:00:07]}  Kc5 {[%clk 0:00:13]} 55. Kc2 {[%clk 0:00:06]}  Bf4 {[%clk 0:00:11]} 56. Kd3 {[%clk 0:00:06]}  Kxd5 {[%clk 0:00:09]} 57. Kxe2 {[%clk 0:00:06]}  Bc1 {[%clk 0:00:09]} 58. Kd3 {[%clk 0:00:07]}  Bxb2 {[%clk 0:00:09]} 59. Nd2 {[%clk 0:00:05]}  Bxa3 {[%clk 0:00:09]} 60. Nc4 {[%clk 0:00:04]}  Bf8 {[%clk 0:00:09]} 61. Nb6+ {[%clk 0:00:04]}  Ke5 {[%clk 0:00:09]} 62. Nxa4 {[%clk 0:00:04]}  Kf5 {[%clk 0:00:08]} 63. Nc3 {[%clk 0:00:05]}  Kg5 {[%clk 0:00:09]} 64. Ke4 {[%clk 0:00:06]}  Kxh5 {[%clk 0:00:09]} 65. Kf3 {[%clk 0:00:07]}  g5 {[%clk 0:00:10]} 66. Nd5 {[%clk 0:00:07]}  g4+ {[%clk 0:00:09]} 67. Kg2 {[%clk 0:00:08]}  Bd6 {[%clk 0:00:09]} 68. Nf6+ {[%clk 0:00:09]}  Kh4 {[%clk 0:00:10]} 69. Nxg4 {[%clk 0:00:09]} 1/2-1/2


[Site "https://www.chess.com"]

[Event "Titled Tuesday Blitz January 10 Late 2023"]
[White "Barria Zuniga, Daniel"]
[Black "Xiong, Jeffery"]
[WhiteFideId "3400816"]
[BlackFideId "2047640"]
[WhiteElo "2341"]
[BlackElo "2692"]
[Result "1/2-1/2"]
[Round "02"]
[TimeControl "180+2"]
[Date "2023.01.10"]
[WhiteClock "0:00:11"]
[BlackClock "0:00:20"]

1. e4 {[%clk 0:00:00]}  c5 {[%clk 0:00:00]} 2. Nf3 {[%clk 0:02:58]}  Nf6 {[%clk 0:02:59]} 3. Nc3 {[%clk 0:02:56]}  Nc6 {[%clk 0:03:00]} 4. d4 {[%clk 0:02:52]}  cxd4 {[%clk 0:02:58]} 5. Nxd4 {[%clk 0:02:51]}  e5 {[%clk 0:02:58]} 6. Ndb5 {[%clk 0:02:52]}  d6 {[%clk 0:02:56]} 7. Bg5 {[%clk 0:02:52]}  a6 {[%clk 0:02:56]} 8. Na3 {[%clk 0:02:52]}  Be7 {[%clk 0:02:53]} 9. Nc4 {[%clk 0:02:51]}  Nd4 {[%clk 0:02:53]} 10. Bxf6 {[%clk 0:02:46]}  Bxf6 {[%clk 0:02:32]} 11. Nd5 {[%clk 0:02:42]}  b5 {[%clk 0:02:32]} 12. Nce3 {[%clk 0:02:43]}  Bg5 {[%clk 0:02:26]} 13. c3 {[%clk 0:02:42]}  Ne6 {[%clk 0:02:24]} 14. a4 {[%clk 0:02:42]}  bxa4 {[%clk 0:02:25]} 15. Qxa4+ {[%clk 0:02:24]}  Bd7 {[%clk 0:02:11]} 16. Qa5 {[%clk 0:02:18]}  O-O {[%clk 0:02:12]} 17. Bd3 {[%clk 0:02:10]}  Nc5 {[%clk 0:01:57]} 18. Bc2 {[%clk 0:02:04]}  Bb5 {[%clk 0:01:54]} 19. Qxd8 {[%clk 0:02:03]}  Rfxd8 {[%clk 0:01:40]} 20. c4 {[%clk 0:01:47]}  Bc6 {[%clk 0:01:41]} 21. b4 {[%clk 0:01:46]}  Ne6 {[%clk 0:01:41]} 22. Ba4 {[%clk 0:01:38]}  Bb7 {[%clk 0:01:41]} 23. f3 {[%clk 0:01:23]}  Rac8 {[%clk 0:01:41]} 24. Kf2 {[%clk 0:01:15]}  Nd4 {[%clk 0:01:38]} 25. h4 {[%clk 0:01:05]}  Bh6 {[%clk 0:01:38]} 26. Ne7+ {[%clk 0:00:58]}  Kf8 {[%clk 0:01:39]} 27. Nxc8 {[%clk 0:00:57]}  Rxc8 {[%clk 0:01:39]} 28. Rhc1 {[%clk 0:00:57]}  g6 {[%clk 0:01:40]} 29. b5 {[%clk 0:00:51]}  a5 {[%clk 0:01:38]} 30. b6 {[%clk 0:00:48]}  Rc5 {[%clk 0:01:14]} 31. Rab1 {[%clk 0:00:45]}  f5 {[%clk 0:01:13]} 32. exf5 {[%clk 0:00:44]}  gxf5 {[%clk 0:01:13]} 33. g4 {[%clk 0:00:37]}  Bxe3+ {[%clk 0:01:14]} 34. Kxe3 {[%clk 0:00:36]}  f4+ {[%clk 0:01:03]} 35. Kf2 {[%clk 0:00:34]}  Nxf3 {[%clk 0:01:04]} 36. Rb5 {[%clk 0:00:33]}  Nd2 {[%clk 0:01:05]} 37. Rxc5 {[%clk 0:00:32]}  Ne4+ {[%clk 0:01:03]} 38. Kg1 {[%clk 0:00:27]}  Nxc5 {[%clk 0:01:03]} 39. Bc2 {[%clk 0:00:23]}  h6 {[%clk 0:01:04]} 40. g5 {[%clk 0:00:21]}  hxg5 {[%clk 0:01:04]} 41. hxg5 {[%clk 0:00:21]}  a4 {[%clk 0:01:05]} 42. Bf5 {[%clk 0:00:21]}  Ke7 {[%clk 0:01:04]} 43. Rd1 {[%clk 0:00:20]}  e4 {[%clk 0:00:38]} 44. g6 {[%clk 0:00:18]}  Nd3 {[%clk 0:00:31]} 45. Ra1 {[%clk 0:00:18]}  Nb2 {[%clk 0:00:30]} 46. Ra2 {[%clk 0:00:14]}  Nxc4 {[%clk 0:00:26]} 47. Rxa4 {[%clk 0:00:11]}  d5 {[%clk 0:00:26]} 48. Ra7 {[%clk 0:00:12]}  Nd6 {[%clk 0:00:20]} 49. Rxb7+ {[%clk 0:00:09]}  Nxb7 {[%clk 0:00:20]} 50. Bc8 {[%clk 0:00:07]}  Na5 {[%clk 0:00:21]} 51. b7 {[%clk 0:00:08]}  Nc6 {[%clk 0:00:19]} 52. g7 {[%clk 0:00:08]}  Kf7 {[%clk 0:00:19]} 53. Be6+ {[%clk 0:00:07]}  Kxg7 {[%clk 0:00:18]} 54. Bxd5 {[%clk 0:00:08]}  Nb8 {[%clk 0:00:18]} 55. Bxe4 {[%clk 0:00:09]}  Kf6 {[%clk 0:00:18]} 56. Bf3 {[%clk 0:00:10]}  Ke5 {[%clk 0:00:18]} 57. Kg2 {[%clk 0:00:10]}  Kd6 {[%clk 0:00:19]} 58. Kh3 {[%clk 0:00:10]}  Kc7 {[%clk 0:00:18]} 59. Kg4 {[%clk 0:00:11]}  Nd7 {[%clk 0:00:19]} 60. Kxf4 {[%clk 0:00:11]}  Nc5 {[%clk 0:00:20]} 61. Kg3 {[%clk 0:00:11]}  Nxb7 {[%clk 0:00:20]} 1/2-1/2


[Site "https://www.chess.com"]

[Event "Titled Tuesday Blitz January 10 Late 2023"]
[White "Paravyan, David"]
[Black "Hsu, Li Yang"]
[WhiteFideId "4194985"]
[BlackFideId "5800080"]
[WhiteElo "2601"]
[BlackElo "2427"]
[Result "1-0"]
[Round "02"]
[TimeControl "180+2"]
[Date "2023.01.10"]
[WhiteClock "0:02:52"]
[BlackClock "0:01:58"]

1. e4 {[%clk 0:00:00]}  c6 {[%clk 0:00:00]} 2. d4 {[%clk 0:03:00]}  d5 {[%clk 0:02:59]} 3. e5 {[%clk 0:03:00]}  Bf5 {[%clk 0:03:00]} 4. h4 {[%clk 0:03:01]}  h5 {[%clk 0:02:59]} 5. Bd3 {[%clk 0:03:01]}  Bxd3 {[%clk 0:02:58]} 6. Qxd3 {[%clk 0:03:01]}  Qb6 {[%clk 0:02:58]} 7. e6 {[%clk 0:03:02]}  Nh6 {[%clk 0:02:55]} 8. Nf3 {[%clk 0:03:01]}  fxe6 {[%clk 0:02:31]} 9. Qg6+ {[%clk 0:02:57]}  Kd8 {[%clk 0:02:30]} 10. Ng5 {[%clk 0:02:53]}  Nd7 {[%clk 0:02:09]} 11. Nxe6+ {[%clk 0:02:53]}  Kc8 {[%clk 0:01:58]} 12. Qe8+ {[%clk 0:02:52]} 1-0


[Site "https://www.chess.com"]

[Event "Titled Tuesday Blitz January 10 Late 2023"]
[White "Jobava, Baadur"]
[Black "Thomforde-Toates, Noah"]
[WhiteFideId "13601520"]
[BlackFideId "30951992"]
[WhiteElo "2578"]
[BlackElo "2124"]
[Result "1-0"]
[Round "02"]
[TimeControl "180+2"]
[Date "2023.01.10"]
[WhiteClock "0:01:47"]
[BlackClock "0:01:10"]

1. b3 {[%clk 0:00:00]}  b6 {[%clk 0:00:00]} 2. Bb2 {[%clk 0:03:00]}  Bb7 {[%clk 0:02:59]} 3. c4 {[%clk 0:03:01]}  e6 {[%clk 0:02:59]} 4. Nf3 {[%clk 0:03:01]}  Nf6 {[%clk 0:02:58]} 5. g3 {[%clk 0:03:00]}  Be7 {[%clk 0:02:58]} 6. Bg2 {[%clk 0:03:01]}  O-O {[%clk 0:02:57]} 7. O-O {[%clk 0:03:01]}  c5 {[%clk 0:02:58]} 8. d3 {[%clk 0:03:02]}  Nc6 {[%clk 0:02:58]} 9. Nbd2 {[%clk 0:03:00]}  Qc7 {[%clk 0:02:57]} 10. e3 {[%clk 0:03:01]}  Rad8 {[%clk 0:02:57]} 11. Qe2 {[%clk 0:03:01]}  d5 {[%clk 0:02:57]} 12. Rfd1 {[%clk 0:03:01]}  dxc4 {[%clk 0:02:57]} 13. Nxc4 {[%clk 0:02:59]}  Nd5 {[%clk 0:02:56]} 14. Rac1 {[%clk 0:02:58]}  b5 {[%clk 0:02:54]} 15. Nce5 {[%clk 0:02:55]}  Nxe5 {[%clk 0:02:17]} 16. Bxe5 {[%clk 0:02:49]}  Qa5 {[%clk 0:02:17]} 17. h4 {[%clk 0:02:49]}  Rc8 {[%clk 0:02:14]} 18. h5 {[%clk 0:02:36]}  Bf6 {[%clk 0:02:12]} 19. h6 {[%clk 0:02:30]}  Bxe5 {[%clk 0:02:09]} 20. Nxe5 {[%clk 0:02:19]}  g6 {[%clk 0:01:48]} 21. Nd7 {[%clk 0:02:19]}  Rfd8 {[%clk 0:01:34]} 22. Qb2 {[%clk 0:02:09]}  f6 {[%clk 0:01:30]} 23. Bxd5 {[%clk 0:02:08]}  Bxd5 {[%clk 0:01:19]} 24. Nxf6+ {[%clk 0:02:00]}  Kf7 {[%clk 0:01:15]} 25. Nxh7 {[%clk 0:02:00]}  Rg8 {[%clk 0:01:14]} 26. e4 {[%clk 0:01:49]}  Ba8 {[%clk 0:01:10]} 27. Qf6+ {[%clk 0:01:47]} 1-0


[Site "https://www.chess.com"]

[Event "Titled Tuesday Blitz January 10 Late 2023"]
[White "Tologon tegin, Semetei"]
[Black "Martinez Alcantara, Jose Eduardo"]
[WhiteFideId "13800574"]
[BlackFideId "3805662"]
[WhiteElo "2372"]
[BlackElo "2619"]
[Result "0-1"]
[Round "02"]
[TimeControl "180+2"]
[Date "2023.01.10"]
[WhiteClock "0:00:11"]
[BlackClock "0:01:00"]

1. Nf3 {[%clk 0:00:00]}  d5 {[%clk 0:00:00]} 2. g3 {[%clk 0:03:00]}  c6 {[%clk 0:02:59]} 3. Bg2 {[%clk 0:02:58]}  Bg4 {[%clk 0:02:59]} 4. d3 {[%clk 0:02:57]}  Nd7 {[%clk 0:03:00]} 5. O-O {[%clk 0:02:55]}  Ngf6 {[%clk 0:03:00]} 6. Qe1 {[%clk 0:02:56]}  e5 {[%clk 0:02:59]} 7. e4 {[%clk 0:02:54]}  dxe4 {[%clk 0:02:59]} 8. dxe4 {[%clk 0:02:54]}  Bc5 {[%clk 0:02:57]} 9. c3 {[%clk 0:02:54]}  O-O {[%clk 0:02:55]} 10. Nbd2 {[%clk 0:02:53]}  Qe7 {[%clk 0:02:54]} 11. Nh4 {[%clk 0:02:52]}  Be6 {[%clk 0:02:53]} 12. Nf5 {[%clk 0:02:50]}  Bxf5 {[%clk 0:02:49]} 13. exf5 {[%clk 0:02:49]}  Rfe8 {[%clk 0:02:49]} 14. Ne4 {[%clk 0:02:50]}  Nxe4 {[%clk 0:02:49]} 15. Bxe4 {[%clk 0:02:49]}  Bb6 {[%clk 0:02:49]} 16. Qe2 {[%clk 0:02:49]}  h6 {[%clk 0:02:47]} 17. Kg2 {[%clk 0:02:44]}  Nf6 {[%clk 0:02:39]} 18. f3 {[%clk 0:02:35]}  Rad8 {[%clk 0:02:38]} 19. Bd2 {[%clk 0:02:35]}  Rd6 {[%clk 0:02:38]} 20. Rad1 {[%clk 0:02:27]}  Red8 {[%clk 0:02:34]} 21. Bc1 {[%clk 0:02:26]}  a5 {[%clk 0:02:33]} 22. a4 {[%clk 0:02:26]}  Qd7 {[%clk 0:02:21]} 23. Bc2 {[%clk 0:02:25]}  Nd5 {[%clk 0:02:15]} 24. h4 {[%clk 0:02:21]}  Qe7 {[%clk 0:02:09]} 25. Rfe1 {[%clk 0:02:17]}  Re8 {[%clk 0:01:49]} 26. Kh3 {[%clk 0:02:08]}  Qd7 {[%clk 0:01:49]} 27. Kg2 {[%clk 0:01:57]}  Nf6 {[%clk 0:01:46]} 28. Rxd6 {[%clk 0:01:46]}  Qxd6 {[%clk 0:01:45]} 29. Rd1 {[%clk 0:01:44]}  Qc5 {[%clk 0:01:46]} 30. g4 {[%clk 0:01:44]}  Nd5 {[%clk 0:01:46]} 31. Bb3 {[%clk 0:01:40]}  e4 {[%clk 0:01:37]} 32. fxe4 {[%clk 0:01:33]}  Nf6 {[%clk 0:01:12]} 33. Bc2 {[%clk 0:01:17]}  Qe5 {[%clk 0:01:13]} 34. Re1 {[%clk 0:00:37]}  Bc7 {[%clk 0:01:13]} 35. Qf3 {[%clk 0:00:33]}  Qh2+ {[%clk 0:01:12]} 36. Kf1 {[%clk 0:00:14]}  Qxc2 {[%clk 0:01:10]} 37. g5 {[%clk 0:00:15]}  hxg5 {[%clk 0:01:10]} 38. hxg5 {[%clk 0:00:15]}  Nxe4 {[%clk 0:01:09]} 39. g6 {[%clk 0:00:16]}  fxg6 {[%clk 0:01:10]} 40. Rd1 {[%clk 0:00:16]}  Ng3+ {[%clk 0:01:02]} 41. Kg1 {[%clk 0:00:11]}  Bb6+ {[%clk 0:01:00]} 0-1


[Site "https://www.chess.com"]

[Event "Titled Tuesday Blitz January 10 Late 2023"]
[White "Keymer, Vincent"]
[Black "Hamley, Ryan"]
[WhiteFideId "12940690"]
[BlackFideId "30959497"]
[WhiteElo "2700"]
[BlackElo "2092"]
[Result "0-1"]
[Round "02"]
[TimeControl "180+2"]
[Date "2023.01.10"]
[WhiteClock "0:00:07"]
[BlackClock "0:00:05"]

1. a3 {[%clk 0:00:00]}  g6 {[%clk 0:00:00]} 2. Nf3 {[%clk 0:03:00]}  Bg7 {[%clk 0:02:58]} 3. d4 {[%clk 0:02:59]}  c5 {[%clk 0:02:58]} 4. d5 {[%clk 0:03:00]}  d6 {[%clk 0:02:57]} 5. e4 {[%clk 0:02:54]}  Nf6 {[%clk 0:02:56]} 6. Nc3 {[%clk 0:02:53]}  O-O {[%clk 0:02:55]} 7. h3 {[%clk 0:02:51]}  e6 {[%clk 0:02:55]} 8. Bc4 {[%clk 0:02:47]}  exd5 {[%clk 0:02:55]} 9. Bxd5 {[%clk 0:02:43]}  Nxd5 {[%clk 0:02:54]} 10. Nxd5 {[%clk 0:02:40]}  Re8 {[%clk 0:02:51]} 11. O-O {[%clk 0:02:40]}  Nc6 {[%clk 0:02:50]} 12. Re1 {[%clk 0:02:39]}  Be6 {[%clk 0:02:38]} 13. Bg5 {[%clk 0:02:31]}  f6 {[%clk 0:02:37]} 14. Bf4 {[%clk 0:02:31]}  Kh8 {[%clk 0:02:35]} 15. Bg3 {[%clk 0:02:28]}  Qd7 {[%clk 0:02:23]} 16. Qd2 {[%clk 0:02:07]}  Rad8 {[%clk 0:02:18]} 17. Rad1 {[%clk 0:02:01]}  f5 {[%clk 0:02:16]} 18. Bh4 {[%clk 0:01:59]}  fxe4 {[%clk 0:02:08]} 19. Ng5 {[%clk 0:01:47]}  Bf5 {[%clk 0:01:58]} 20. c3 {[%clk 0:01:37]}  h6 {[%clk 0:01:11]} 21. Nxe4 {[%clk 0:00:51]}  Rxe4 {[%clk 0:01:04]} 22. Rxe4 {[%clk 0:00:49]}  Bxe4 {[%clk 0:01:01]} 23. Nf6 {[%clk 0:00:41]}  Qe7 {[%clk 0:01:01]} 24. Nxe4 {[%clk 0:00:35]}  Qxh4 {[%clk 0:00:34]} 25. Nxd6 {[%clk 0:00:22]}  Qf6 {[%clk 0:00:34]} 26. Qd5 {[%clk 0:00:23]}  Kh7 {[%clk 0:00:27]} 27. Rd3 {[%clk 0:00:16]}  Bf8 {[%clk 0:00:21]} 28. Ne4 {[%clk 0:00:12]}  Qe7 {[%clk 0:00:20]} 29. Qc4 {[%clk 0:00:12]}  Ne5 {[%clk 0:00:17]} 30. Rxd8 {[%clk 0:00:09]}  Nxc4 {[%clk 0:00:15]} 31. Rd7 {[%clk 0:00:09]}  Nxb2 {[%clk 0:00:15]} 32. Nf6+ {[%clk 0:00:10]}  Kg7 {[%clk 0:00:11]} 33. Rxe7+ {[%clk 0:00:09]}  Bxe7 {[%clk 0:00:12]} 34. Nd5 {[%clk 0:00:08]}  Bd6 {[%clk 0:00:12]} 35. Kf1 {[%clk 0:00:09]}  Nc4 {[%clk 0:00:12]} 36. a4 {[%clk 0:00:09]}  Kf7 {[%clk 0:00:12]} 37. Ke2 {[%clk 0:00:09]}  Ke6 {[%clk 0:00:12]} 38. Ne3 {[%clk 0:00:09]}  Nxe3 {[%clk 0:00:13]} 39. Kxe3 {[%clk 0:00:07]}  Ke5 {[%clk 0:00:13]} 40. c4 {[%clk 0:00:08]}  Be7 {[%clk 0:00:13]} 41. f4+ {[%clk 0:00:08]}  Kf5 {[%clk 0:00:13]} 42. g4+ {[%clk 0:00:08]}  Ke6 {[%clk 0:00:13]} 43. Ke4 {[%clk 0:00:09]}  Bd6 {[%clk 0:00:13]} 44. Ke3 {[%clk 0:00:09]}  Kf6 {[%clk 0:00:12]} 45. Ke4 {[%clk 0:00:09]}  Be7 {[%clk 0:00:11]} 46. Ke3 {[%clk 0:00:10]}  g5 {[%clk 0:00:11]} 47. f5 {[%clk 0:00:10]}  Ke5 {[%clk 0:00:07]} 48. Kd3 {[%clk 0:00:09]}  Kf4 {[%clk 0:00:08]} 49. a5 {[%clk 0:00:09]}  b6 {[%clk 0:00:07]} 50. a6 {[%clk 0:00:08]}  Bf6 {[%clk 0:00:06]} 51. Kc2 {[%clk 0:00:08]}  Ke4 {[%clk 0:00:06]} 52. Kb3 {[%clk 0:00:07]}  Kd4 {[%clk 0:00:07]} 53. Ka3 {[%clk 0:00:08]}  Kxc4 {[%clk 0:00:07]} 54. Ka4 {[%clk 0:00:06]}  b5+ {[%clk 0:00:08]} 55. Ka5 {[%clk 0:00:07]}  Bd8# {[%clk 0:00:05]} 0-1


[Site "https://www.chess.com"]

[Event "Titled Tuesday Blitz January 10 Late 2023"]
[White "Tica, Sven"]
[Black "Mamedyarov, Shakhriyar"]
[WhiteFideId "14526948"]
[BlackFideId "13401319"]
[WhiteElo "2431"]
[BlackElo "2738"]
[Result "0-1"]
[Round "02"]
[TimeControl "180+2"]
[Date "2023.01.10"]
[WhiteClock "0:02:24"]
[BlackClock "0:02:25"]

1. d4 {[%clk 0:00:00]}  Nf6 {[%clk 0:00:00]} 2. Nf3 {[%clk 0:03:00]}  g6 {[%clk 0:02:58]} 3. g3 {[%clk 0:03:01]}  Bg7 {[%clk 0:02:58]} 4. Bg2 {[%clk 0:03:02]}  O-O {[%clk 0:02:59]} 5. O-O {[%clk 0:03:03]}  d6 {[%clk 0:02:59]} 6. b3 {[%clk 0:03:04]}  c5 {[%clk 0:02:59]} 7. Bb2 {[%clk 0:03:04]}  cxd4 {[%clk 0:02:58]} 8. Nxd4 {[%clk 0:03:05]}  d5 {[%clk 0:02:58]} 9. c4 {[%clk 0:03:05]}  dxc4 {[%clk 0:02:58]} 10. bxc4 {[%clk 0:03:01]}  Qb6 {[%clk 0:02:58]} 11. Qc1 {[%clk 0:03:02]}  Nc6 {[%clk 0:02:58]} 12. Nxc6 {[%clk 0:02:58]}  bxc6 {[%clk 0:02:55]} 13. Nc3 {[%clk 0:02:56]}  Be6 {[%clk 0:02:56]} 14. Ne4 {[%clk 0:02:52]}  Nxe4 {[%clk 0:02:47]} 15. Bxg7 {[%clk 0:02:23]}  Nxg3 {[%clk 0:02:33]} 16. Qc3 {[%clk 0:02:24]}  Nxe2+ {[%clk 0:02:25]} 0-1


[Site "https://www.chess.com"]

[Event "Titled Tuesday Blitz January 10 Late 2023"]
[White "Czernek, Tymon"]
[Black "Zierk, Steven"]
[WhiteFideId "1199510"]
[BlackFideId "2034255"]
[WhiteElo "2314"]
[BlackElo "2488"]
[Result "0-1"]
[Round "02"]
[TimeControl "180+2"]
[Date "2023.01.10"]
[WhiteClock "0:00:06"]
[BlackClock "0:00:54"]

1. e4 {[%clk 0:00:00]}  e6 {[%clk 0:00:00]} 2. d4 {[%clk 0:02:55]}  d5 {[%clk 0:03:00]} 3. Nc3 {[%clk 0:02:55]}  Bb4 {[%clk 0:03:01]} 4. e5 {[%clk 0:02:56]}  c5 {[%clk 0:03:00]} 5. a3 {[%clk 0:02:56]}  Bxc3+ {[%clk 0:03:00]} 6. bxc3 {[%clk 0:02:57]}  Qa5 {[%clk 0:03:01]} 7. Bd2 {[%clk 0:02:58]}  Qa4 {[%clk 0:03:01]} 8. Qb1 {[%clk 0:02:58]}  c4 {[%clk 0:03:02]} 9. f4 {[%clk 0:02:48]}  Nc6 {[%clk 0:03:01]} 10. Nf3 {[%clk 0:02:47]}  Bd7 {[%clk 0:02:55]} 11. Be2 {[%clk 0:02:47]}  O-O-O {[%clk 0:02:52]} 12. O-O {[%clk 0:02:47]}  Nge7 {[%clk 0:02:52]} 13. Ra2 {[%clk 0:02:42]}  f6 {[%clk 0:02:52]} 14. Qe1 {[%clk 0:02:38]}  Be8 {[%clk 0:02:48]} 15. g4 {[%clk 0:02:33]}  Bg6 {[%clk 0:02:47]} 16. Bd1 {[%clk 0:02:21]}  Be4 {[%clk 0:02:40]} 17. Bc1 {[%clk 0:02:19]}  Rdf8 {[%clk 0:02:35]} 18. Nd2 {[%clk 0:02:09]}  f5 {[%clk 0:02:31]} 19. Nxe4 {[%clk 0:02:09]}  fxe4 {[%clk 0:02:31]} 20. f5 {[%clk 0:02:07]}  exf5 {[%clk 0:02:27]} 21. gxf5 {[%clk 0:02:08]}  Nxf5 {[%clk 0:02:25]} 22. Bg4 {[%clk 0:02:08]}  g6 {[%clk 0:02:24]} 23. Bh6 {[%clk 0:02:06]}  Rf7 {[%clk 0:02:23]} 24. e6 {[%clk 0:02:05]}  Re7 {[%clk 0:02:17]} 25. Bg5 {[%clk 0:02:02]}  Rxe6 {[%clk 0:02:17]} 26. Rxf5 {[%clk 0:01:51]}  gxf5 {[%clk 0:02:03]} 27. Bxf5 {[%clk 0:01:51]}  Re8 {[%clk 0:02:03]} 28. Qh4 {[%clk 0:01:52]}  Kc7 {[%clk 0:02:00]} 29. Bxe6 {[%clk 0:01:50]}  Rxe6 {[%clk 0:01:49]} 30. Qxh7+ {[%clk 0:01:44]}  Ne7 {[%clk 0:01:49]} 31. Bf4+ {[%clk 0:01:44]}  Kb6 {[%clk 0:01:46]} 32. Rb2+ {[%clk 0:01:10]}  Ka6 {[%clk 0:01:42]} 33. Qf7 {[%clk 0:01:08]}  Qd7 {[%clk 0:01:43]} 34. Rb1 {[%clk 0:01:07]}  e3 {[%clk 0:01:38]} 35. Re1 {[%clk 0:00:45]}  Re4 {[%clk 0:01:33]} 36. Qf6+ {[%clk 0:00:37]}  b6 {[%clk 0:01:25]} 37. Qg5 {[%clk 0:00:27]}  e2 {[%clk 0:01:17]} 38. Kf2 {[%clk 0:00:13]}  Qe6 {[%clk 0:01:18]} 39. h4 {[%clk 0:00:11]}  Qf7 {[%clk 0:01:13]} 40. Kf3 {[%clk 0:00:07]}  Ng6 {[%clk 0:01:01]} 41. Rxe2 {[%clk 0:00:06]}  Nxf4 {[%clk 0:01:01]} 42. Rxe4 {[%clk 0:00:05]}  Ne6+ {[%clk 0:00:57]} 43. Rf4 {[%clk 0:00:04]}  Nxg5+ {[%clk 0:00:55]} 44. hxg5 {[%clk 0:00:04]}  Qh5+ {[%clk 0:00:55]} 45. Rg4 {[%clk 0:00:04]}  Qh3+ {[%clk 0:00:56]} 46. Kf4 {[%clk 0:00:04]}  Qxc3 {[%clk 0:00:56]} 47. g6 {[%clk 0:00:04]}  Qxd4+ {[%clk 0:00:55]} 48. Kf5 {[%clk 0:00:05]}  Qg7 {[%clk 0:00:56]} 49. Rh4 {[%clk 0:00:05]}  Qd7+ {[%clk 0:00:56]} 50. Kf4 {[%clk 0:00:06]}  Qd6+ {[%clk 0:00:56]} 51. Kg5 {[%clk 0:00:04]}  Qe7+ {[%clk 0:00:56]} 52. Kh5 {[%clk 0:00:04]}  d4 {[%clk 0:00:56]} 53. Rg4 {[%clk 0:00:05]}  Qe5+ {[%clk 0:00:54]} 54. Kh6 {[%clk 0:00:05]}  Qh8+ {[%clk 0:00:54]} 55. Kg5 {[%clk 0:00:06]}  d3 {[%clk 0:00:53]} 56. Rxc4 {[%clk 0:00:06]}  d2 {[%clk 0:00:54]} 0-1


[Site "https://www.chess.com"]